bitfinex/quotes_SOLUSD_20250604
["timestamp","ask_amount","ask_price","bid_price","bid_amount"]
[1749053195042,19.45925154,157.03,156.99,19.45925154]
[1749053195242,19.45925154,157.03,156.98,26.0]
[1749053195463,19.45925154,157.02,156.98,26.0]
[1749053195646,19.45925154,157.03,156.99,19.45925154]
[1749053196267,6.2447,157.07,156.99,19.45925154]
[1749053196462,19.45925154,157.03,156.98,45.45925154]
[1749053196671,19.45925154,157.02,156.98,26.0]
[1749053196837,19.45925154,157.02,156.98,45.45925154]
[1749053197142,6.2447,157.07,156.99,19.45925154]
[1749053197143,19.45925154,157.03,156.99,19.45925154]
[1749053197345,6.2447,157.07,156.99,19.45925154]
[1749053197553,19.45925154,157.04,156.99,19.45925154]
[1749053197742,19.45925154,157.03,156.98,26.0]
[1749053197946,19.45925154,157.03,156.99,18.64964886]
[1749053198265,19.45925154,157.04,156.99,38.1089004]
[1749053198567,6.2447,157.07,156.96,20.02789782]
[1749053198568,23.5910996,156.98,156.96,20.02789782]
[1749053198876,23.5910996,156.97,156.96,19.88573625]
[1749053199081,45.45925154,157.04,156.97,0.14216157]
[1749053199248,235.8,157.03,156.97,0.14216157]
[1749053199872,255.25925154,157.03,156.99,19.45925154]
[1749053200449,255.25925154,157.03,156.97,0.14216157]
[1749053200649,255.25925154,157.03,156.99,19.45925154]
[1749053201269,255.25925154,157.03,156.98,19.45925154]
[1749053201270,19.45925154,157.02,156.98,19.45925154]
[1749053201782,255.25925154,157.03,156.98,19.45925154]
[1749053202141,19.45925154,157.02,156.97,19.60141311]
[1749053202344,107.15925154,157.01,156.97,19.45925154]
[1749053202845,87.7,157.0,156.96,38.1089004]
[1749053203046,87.7,156.99,156.97,19.45925154]
[1749053203841,148.1,157.03,156.98,19.45925154]
[1749053204171,148.1,157.03,157.0,19.45925154]
[1749053204359,148.1,157.03,157.01,19.45925154]
[1749053204846,148.1,157.03,157.02,19.45925154]
[1749053205059,107.15925154,157.06,157.02,19.45925154]
[1749053206478,19.45925154,157.05,157.0,19.88573625]
[1749053206859,19.45925154,157.04,157.0,19.45925154]
[1749053208081,19.45925154,157.03,156.91,5.14285795]
[1749053208292,19.45925154,157.01,156.97,19.45925154]
[1749053209570,235.8,157.06,156.97,19.45925154]
[1749053209767,19.45925154,157.02,156.97,19.45925154]
[1749053209958,235.8,157.01,156.98,19.21829514]
[1749053210160,148.1,157.01,157.0,19.21829514]
[1749053210363,148.1,157.01,157.0,38.67754668]
[1749053214256,148.1,157.01,157.0,38.1089004]
[1749053215285,148.1,157.01,157.0,19.45925154]
[1749053215762,148.1,157.01,157.0,38.67754668]
[1749053216367,148.1,157.01,157.0,40.19944668]
[1749053216685,1.6217,157.14,157.05,0.42648471]
[1749053216686,148.1,157.1,157.05,0.42648471]
[1749053216854,148.1,157.09,157.05,0.42648471]
[1749053217055,148.1,157.09,157.08,19.45925154]
[1749053217986,148.1,157.09,157.05,0.42648471]
[1749053218195,148.1,157.09,157.06,19.45925154]
[1749053219464,148.1,157.09,157.07,19.45925154]
[1749053220279,148.1,157.09,157.06,19.45925154]
[1749053220484,167.55925154,157.09,157.05,19.45925154]
[1749053220800,148.1,157.09,157.03,38.67754668]
[1749053221092,19.45925154,157.08,157.04,19.45925154]
[1749053221458,87.7,157.07,157.04,19.45925154]
[1749053221766,148.1,157.09,157.01,38.67754668]
[1749053221767,19.45925154,157.05,157.01,38.67754668]
[1749053221960,87.7,157.04,157.01,38.67754668]
[1749053222267,253.73735154,157.03,156.96,6.3135]
[1749053222455,19.45925154,157.02,156.98,19.45925154]
[1749053223091,234.2781,157.03,156.97,45.21829514]
[1749053223291,234.2781,157.03,157.01,19.45925154]
[1749053223456,86.1781,157.02,157.01,38.1089004]
[1749053225259,86.1781,157.02,157.01,47.80491652]
[1749053225769,86.1781,157.02,157.01,48.3735628]
[1749053225970,86.1781,157.02,156.99,0.56864628]
[1749053226188,86.1781,157.02,157.01,47.80491652]
[1749053226763,86.1781,157.02,157.01,48.3735628]
[1749053227173,148.1,157.03,157.02,19.21829514]
[1749053227373,148.1,157.03,157.02,18.64964886]
[1749053227599,148.1,157.03,157.02,47.80491652]
[1749053228371,148.1,157.03,157.01,47.80491652]
[1749053228983,148.1,157.03,157.01,18.64964886]
[1749053229367,148.1,157.03,157.01,47.80491652]
[1749053230391,87.7,157.02,157.01,18.64964886]
[1749053230589,87.7,157.0,156.99,18.64964886]
[1749053231486,87.7,157.0,156.98,29.15526766]
[1749053231487,87.7,157.0,156.98,18.64964886]
[1749053231699,29.15526766,156.99,156.96,18.79181043]
[1749053231903,177.25526766,156.99,156.96,18.64964886]
[1749053232065,177.25526766,156.99,156.95,18.933972]
[1749053232266,177.25526766,156.99,156.95,48.08923966]
[1749053232703,264.95526766,156.98,156.94,29.15526766]
[1749053233005,29.15526766,156.96,156.93,18.64964886]
[1749053233220,6.511,157.02,156.91,47.80491652]
[1749053233221,29.15526766,156.95,156.91,47.80491652]
[1749053233419,29.15526766,156.97,156.92,29.15526766]
[1749053233572,29.15526766,156.96,156.92,29.15526766]
[1749053234279,26.0,156.99,156.91,18.64964886]
[1749053234280,29.15526766,156.98,156.91,18.64964886]
[1749053234592,6.511,157.02,156.91,18.64964886]
[1749053234593,29.15526766,156.97,156.93,29.15526766]
[1749053235000,29.15526766,156.97,156.91,44.64964886]
[1749053235881,29.15526766,156.98,156.93,18.64964886]
[1749053236077,29.15526766,156.99,156.95,29.15526766]
[1749053236706,29.15526766,156.98,156.94,29.15526766]
[1749053236905,29.15526766,156.98,156.91,26.0]
[1749053237113,29.15526766,156.96,156.92,29.15526766]
[1749053237290,29.15526766,156.96,156.92,18.64964886]
[1749053239206,264.95526766,156.95,156.9,31.33411394]
[1749053239427,116.85526766,156.94,156.91,18.64964886]
[1749053239910,87.7,156.94,156.91,47.80491652]
[1749053240082,87.7,156.94,156.93,47.80491652]
[1749053240485,87.7,156.94,156.93,74.3735628]
[1749053240683,87.7,156.94,156.93,49.9498628]
[1749053240999,235.8,157.03,156.99,18.64964886]
[1749053241202,235.8,157.02,156.99,47.80491652]
[1749053241398,264.95526766,157.02,156.98,18.64964886]
[1749053241710,264.95526766,157.02,156.98,47.80491652]
[1749053242604,264.95526766,157.02,156.98,29.15526766]
[1749053245096,87.7,157.01,157.0,29.15526766]
[1749053245299,148.1,157.02,157.0,48.08923966]
[1749053245533,148.1,157.02,157.01,48.23140123]
[1749053246257,148.1,157.02,157.01,48.3735628]
[1749053249046,148.1,157.02,157.01,19.07613357]
[1749053249230,148.1,157.02,157.01,29.15526766]
[1749053249404,148.1,157.02,157.0,29.15526766]
[1749053249611,87.7,157.01,157.0,29.15526766]
[1749053250631,87.7,157.01,157.0,19.07613357]
[1749053250819,87.7,157.01,157.0,48.23140123]
[1749053252043,87.7,157.01,157.0,29.15526766]
[1749053252725,87.7,157.01,157.0,48.3735628]
[1749053253228,87.7,157.01,157.0,19.21829514]
[1749053253550,87.7,157.01,157.0,48.3735628]
[1749053254059,148.1,157.02,157.01,19.07613357]
[1749053254263,148.1,157.02,157.01,48.23140123]
[1749053257332,148.1,157.02,156.99,29.15526766]
[1749053258767,148.1,157.02,157.0,29.15526766]
[1749053259327,148.1,157.02,156.99,29.4395908]
[1749053259938,87.7,157.01,156.99,29.4395908]
[1749053260656,87.7,157.0,156.99,29.15526766]
[1749053260955,87.7,157.0,156.98,47.94707809]
[1749053261927,87.7,157.0,156.99,29.15526766]
[1749053265929,148.1,157.02,156.99,29.15526766]
[1749053266940,148.1,157.02,157.0,29.15526766]
[1749053267447,148.1,157.02,157.0,19.43818585]
[1749053267830,148.1,157.02,156.99,0.28432314]
[1749053268228,148.1,157.02,156.99,19.72250899]
[1749053268459,148.1,157.02,157.0,19.43818585]
[1749053269355,148.1,157.02,156.99,19.72250899]
[1749053269666,148.1,157.02,156.99,0.28432314]
[1749053269956,167.53818585,157.02,156.99,0.28432314]
[1749053270165,167.53818585,157.02,156.98,18.79181043]
[1749053270532,19.43818585,157.01,156.98,18.79181043]
[1749053271564,148.1,157.02,156.98,18.79181043]
[1749053271767,148.1,157.07,157.02,0.28432314]
[1749053272067,148.1,157.06,157.04,19.43818585]
[1749053272254,148.1,157.06,157.05,19.43818585]
[1749053272448,148.1,157.06,157.05,38.51431942]
[1749053272862,148.1,157.06,157.05,38.65648099]
[1749053273171,148.1,157.1,157.06,19.07613357]
[1749053273480,148.1,157.1,157.07,19.43818585]
[1749053274557,148.1,157.1,157.06,38.51431942]
[1749053275158,167.53818585,157.1,157.06,38.51431942]
[1749053275471,177.23646188,157.1,157.06,48.21259545]
[1749053276146,29.13646188,157.08,157.04,19.07613357]
[1749053276668,29.13646188,157.08,157.04,48.21259545]
[1749053276866,87.7,157.07,157.04,48.21259545]
[1749053277370,87.7,157.07,157.04,19.07613357]
[1749053277555,87.7,157.07,157.04,48.21259545]
[1749053277942,29.13646188,157.06,156.99,8.1123]
[1749053278145,29.13646188,157.05,157.01,29.13646188]
[1749053278443,29.13646188,157.05,157.01,55.13646188]
[1749053279269,264.93646188,157.06,157.02,29.13646188]
[1749053280460,29.13646188,157.05,157.01,26.0]
[1749053281892,235.8,157.06,157.01,26.0]
[1749053281893,29.13646188,157.04,157.01,26.0]
[1749053283069,235.8,157.06,157.0,18.933972]
[1749053283070,29.13646188,157.02,157.0,18.933972]
[1749053283305,264.93646188,157.01,156.96,18.79181043]
[1749053283582,264.93646188,157.01,156.87,46.78933453]
[1749053283583,29.13646188,156.97,156.92,29.27862345]
[1749053283786,29.13646188,156.96,156.92,55.27862345]
[1749053284189,29.13646188,156.96,156.94,0.14216157]
[1749053284906,29.13646188,156.99,156.96,18.933972]
[1749053285206,116.83646188,157.0,156.97,0.14216157]
[1749053285358,87.7,157.0,156.97,0.14216157]
[1749053285554,87.7,157.0,156.98,18.933972]
[1749053286082,87.7,157.0,156.99,48.21259545]
[1749053286286,87.7,157.0,156.99,74.35475702]
[1749053287570,148.1,157.06,157.04,0.28432314]
[1749053287772,87.7,157.07,157.04,29.42078502]
[1749053288174,116.83646188,157.07,157.04,0.28432314]
[1749053289317,29.13646188,157.06,157.02,26.0]
[1749053289487,29.13646188,157.05,157.03,26.0]
[1749053289687,87.7,157.06,157.03,26.0]
[1749053289905,116.83646188,157.06,157.02,18.79181043]
[1749053290781,87.7,157.06,157.02,18.79181043]
[1749053290998,116.83646188,157.06,157.02,18.79181043]
[1749053291208,116.83646188,157.06,157.02,47.92827231]
[1749053291703,87.7,157.06,157.03,29.13646188]
[1749053291884,87.7,157.06,157.04,29.42078502]
[1749053292085,87.7,157.1,157.06,18.933972]
[1749053292311,87.7,157.09,157.07,29.13646188]
[1749053292607,87.7,157.09,157.06,29.27862345]
[1749053293797,87.7,157.09,157.07,29.13646188]
[1749053294500,87.7,157.09,157.08,26.0]
[1749053295800,116.83646188,157.09,157.08,26.0]
[1749053297178,116.83646188,157.09,157.06,18.933972]
[1749053298104,116.83646188,157.09,157.05,26.14216157]
[1749053300797,116.83646188,157.09,157.05,55.27862345]
[1749053301387,235.8,157.08,157.05,29.27862345]
[1749053302410,29.13646188,157.06,156.98,1.5776]
[1749053302617,29.13646188,157.06,156.96,29.27862345]
[1749053302618,116.83646188,157.05,156.96,29.27862345]
[1749053302797,116.83646188,157.05,156.96,0.14216157]
[1749053302798,29.13646188,157.01,156.96,0.14216157]
[1749053302992,29.13646188,157.01,156.97,55.13646188]
[1749053303187,19.4439949,157.02,156.99,0.14216157]
[1749053303512,19.4439949,157.03,156.99,19.58615647]
[1749053303702,87.7,157.04,157.01,38.3779669]
[1749053303908,87.7,157.04,157.02,0.14216157]
[1749053304317,107.1439949,157.04,157.02,0.14216157]
[1749053305292,87.7,157.04,157.02,0.14216157]
[1749053306330,87.7,157.04,157.01,0.14216157]
[1749053306491,87.7,157.04,157.02,18.933972]
[1749053307303,87.7,157.04,157.03,29.43982843]
[1749053307515,148.1,157.05,157.04,19.07613357]
[1749053307716,148.1,157.05,157.04,48.23163886]
[1749053308216,148.1,157.05,157.01,27.6447]
[1749053308217,68.766028,157.02,157.01,26.0]
[1749053308393,97.92153329,157.02,156.97,30.76970529]
[1749053308591,68.766028,157.01,156.98,29.15550529]
[1749053308922,68.766028,157.01,156.99,0.14216157]
[1749053309111,97.92153329,157.01,156.99,0.14216157]
[1749053309418,29.15550529,157.0,156.96,29.15550529]
[1749053309608,29.15550529,157.0,156.96,55.15550529]
[1749053309798,29.15550529,157.0,156.97,0.14216157]
[1749053310832,29.15550529,156.99,156.97,0.14216157]
[1749053311125,29.15550529,156.98,156.96,0.14216157]
[1749053311326,6.4187,157.02,156.96,0.14216157]
[1749053311530,29.15550529,156.98,156.95,26.0]
[1749053311716,29.15550529,156.99,156.96,0.14216157]
[1749053312632,29.15550529,157.0,156.96,0.14216157]
[1749053312818,1.5282,157.04,156.96,29.29766686]
[1749053313026,29.15550529,157.0,156.96,29.29766686]
[1749053313633,29.15550529,157.0,156.96,0.14216157]
[1749053313871,29.15550529,156.99,156.96,0.14216157]
[1749053315831,29.15550529,157.0,156.96,0.14216157]
[1749053316223,216.866028,156.99,156.96,0.14216157]
[1749053316635,216.866028,156.99,156.96,29.29766686]
[1749053316828,216.866028,156.99,156.96,0.14216157]
[1749053317137,29.15550529,156.97,156.95,26.0]
[1749053317443,68.766028,156.96,156.95,26.0]
[1749053317612,29.15550529,156.97,156.95,26.0]
[1749053318215,148.1,156.98,156.95,26.0]
[1749053318417,29.15550529,156.97,156.95,26.0]
[1749053318639,29.15550529,156.97,156.94,0.14216157]
[1749053319514,29.15550529,156.96,156.92,45.07613357]
[1749053319729,29.15550529,156.96,156.93,0.14216157]
[1749053320140,148.1,156.98,156.93,0.14216157]
[1749053320346,29.15550529,156.96,156.93,0.14216157]
[1749053322028,87.7,156.95,156.93,0.14216157]
[1749053322919,87.7,156.95,156.93,29.29766686]
[1749053323342,87.7,156.95,156.93,0.14216157]
[1749053324932,116.85550529,156.95,156.93,0.14216157]
[1749053325136,264.95550529,156.94,156.88,5.04627871]
[1749053325459,29.15550529,156.9,156.81,1.5816]
[1749053325676,29.15550529,156.85,156.81,30.73710529]
[1749053325835,29.15550529,156.85,156.82,26.0]
[1749053326157,29.15550529,156.86,156.83,0.14216157]
[1749053326543,29.15550529,156.86,156.82,26.0]
[1749053326756,29.15550529,156.86,156.83,0.14216157]
[1749053326946,29.15550529,156.86,156.82,26.0]
[1749053327146,29.15550529,156.88,156.83,29.29766686]
[1749053327341,264.95550529,156.89,156.85,29.15550529]
[1749053327536,29.15550529,156.87,156.83,19.21829514]
[1749053327847,29.15550529,156.87,156.81,1.5816]
[1749053327848,29.15550529,156.85,156.81,1.5816]
[1749053328041,29.15550529,156.85,156.81,30.73710529]
[1749053328243,29.15550529,156.86,156.82,29.15550529]
[1749053328440,29.15550529,156.86,156.81,27.5816]
[1749053328659,29.15550529,156.84,156.81,26.0]
[1749053328910,29.15550529,156.84,156.82,0.14216157]
[1749053329370,29.15550529,156.85,156.82,0.14216157]
[1749053329541,87.7,156.88,156.82,29.29766686]
[1749053329738,87.7,156.88,156.85,29.15550529]
[1749053329972,87.7,156.87,156.85,29.15550529]
[1749053330138,87.7,156.87,156.86,0.14216157]
[1749053330647,116.85550529,156.91,156.86,48.37380043]
[1749053331250,87.7,156.9,156.86,19.21829514]
[1749053331451,26.0,156.88,156.78,18.79181043]
[1749053331761,32.3188,156.91,156.82,29.15550529]
[1749053331959,32.3188,156.91,156.83,29.15550529]
[1749053332141,29.15550529,156.88,156.84,29.15550529]
[1749053332342,29.15550529,156.88,156.82,19.07613357]
[1749053332545,29.15550529,156.88,156.83,29.15550529]
[1749053332760,32.3188,156.91,156.83,29.15550529]
[1749053332955,32.3188,156.91,156.82,18.933972]
[1749053332956,29.15550529,156.87,156.82,18.933972]
[1749053333158,32.3188,156.91,156.82,18.933972]
[1749053333359,32.3188,156.91,156.82,48.08947729]
[1749053333547,32.3188,156.91,156.83,29.15550529]
[1749053333875,29.15550529,156.88,156.83,29.15550529]
[1749053334443,32.3188,156.91,156.84,29.15550529]
[1749053334679,29.15550529,156.89,156.85,29.15550529]
[1749053335284,6.3188,156.91,156.83,19.07613357]
[1749053335449,6.3188,156.91,156.83,0.14216157]
[1749053335652,29.15550529,156.88,156.85,26.0]
[1749053336352,29.15550529,156.88,156.84,29.15550529]
[1749053336581,29.15550529,156.88,156.83,55.29766686]
[1749053336745,6.3188,156.91,156.84,29.15550529]
[1749053336943,29.15550529,156.88,156.84,29.15550529]
[1749053337162,26.0,156.93,156.85,0.14216157]
[1749053337361,29.15550529,156.89,156.85,29.29766686]
[1749053337576,29.15550529,156.9,156.85,29.29766686]
[1749053337781,26.0,156.93,156.81,26.0]
[1749053337949,29.15550529,156.89,156.84,29.15550529]
[1749053338468,29.15550529,156.87,156.83,0.14216157]
[1749053338843,29.15550529,156.87,156.83,29.29766686]
[1749053339040,29.15550529,156.87,156.83,0.14216157]
[1749053339291,19.48416349,156.86,156.78,19.21829514]
[1749053339567,6.3368,156.9,156.82,38.70245863]
[1749053339738,6.3368,156.9,156.85,19.48416349]
[1749053339948,19.48416349,156.89,156.85,19.48416349]
[1749053340148,6.3901,156.94,156.86,19.48416349]
[1749053340475,6.3901,156.94,156.88,19.48416349]
[1749053340780,6.3901,156.94,156.89,19.48416349]
[1749053340980,19.48416349,156.93,156.89,19.48416349]
[1749053341277,19.48416349,156.92,156.88,19.48416349]
[1749053341450,19.48416349,156.92,156.86,19.21829514]
[1749053341657,19.48416349,156.92,156.87,19.48416349]
[1749053342050,19.48416349,156.92,156.88,19.48416349]
[1749053342474,19.48416349,156.92,156.86,19.21829514]
[1749053342776,19.48416349,156.92,156.87,19.48416349]
[1749053343072,6.3901,156.94,156.87,19.48416349]
[1749053343276,6.3901,156.94,156.86,19.21829514]
[1749053343277,19.48416349,156.92,156.88,19.48416349]
[1749053343779,6.3901,156.94,156.88,19.48416349]
[1749053344083,19.48416349,156.92,156.88,19.48416349]
[1749053344983,6.3901,156.94,156.88,19.48416349]
[1749053345166,235.8,156.93,156.89,19.48416349]
[1749053345563,235.8,156.93,156.91,19.48416349]
[1749053345881,235.8,156.92,156.89,19.48416349]
[1749053346051,235.8,156.92,156.89,18.79181043]
[1749053346660,235.8,156.92,156.89,19.62632506]
[1749053347379,235.8,156.92,156.9,19.48416349]
[1749053350770,235.8,156.92,156.89,38.27597392]
[1749053351398,235.8,156.92,156.9,19.48416349]
[1749053351788,87.7,156.91,156.9,19.48416349]
[1749053352670,87.7,156.91,156.89,38.27597392]
[1749053353073,19.48416349,156.93,156.89,18.79181043]
[1749053353471,19.48416349,156.92,156.84,1.6369]
[1749053353671,20.99876349,156.96,156.87,18.79181043]
[1749053353672,19.48416349,156.9,156.87,18.79181043]
[1749053353869,19.48416349,156.91,156.87,38.27597392]
[1749053354063,46.99876349,156.96,156.9,19.48416349]
[1749053354064,27.5146,156.96,156.9,19.48416349]
[1749053354369,27.5146,156.96,156.89,0.14216157]
[1749053354370,20.99876349,156.96,156.92,19.48416349]
[1749053354881,1.5146,156.96,156.92,19.48416349]
[1749053355066,26.0,156.99,156.89,0.28432314]
[1749053355067,19.48416349,156.97,156.93,19.48416349]
[1749053355473,1.5529,157.0,156.94,19.48416349]
[1749053355791,19.48416349,156.97,156.93,19.48416349]
[1749053356497,6.5865,157.02,156.95,19.48416349]
[1749053356698,19.48416349,156.99,156.95,19.48416349]
[1749053356860,32.5865,157.02,156.95,19.48416349]
[1749053357064,19.48416349,156.99,156.95,19.48416349]
[1749053357502,32.5865,157.02,156.95,19.48416349]
[1749053357665,19.48416349,156.99,156.95,19.48416349]
[1749053358380,19.48416349,156.97,156.94,18.79181043]
[1749053359705,19.48416349,156.98,156.94,38.27597392]
[1749053359908,19.48416349,156.98,156.94,18.79181043]
[1749053360108,19.48416349,156.95,156.92,18.79181043]
[1749053360601,19.48416349,156.96,156.92,38.13381235]
[1749053363594,235.8,156.95,156.92,38.13381235]
[1749053363776,235.8,156.95,156.92,18.64964886]
[1749053363981,235.8,156.95,156.92,38.13381235]
[1749053365417,235.8,156.95,156.93,0.14216157]
[1749053365612,235.8,156.95,156.94,38.27597392]
[1749053365826,235.8,156.95,156.94,38.70245863]
[1749053366600,8.1616,156.93,156.83,35.0]
[1749053366901,19.48416349,156.84,156.83,35.0]
[1749053367080,19.48416349,156.84,156.75,19.48416349]
[1749053367282,19.48416349,156.8,156.75,19.48416349]
[1749053367479,19.48416349,156.8,156.76,18.79181043]
[1749053367992,19.48416349,156.8,156.75,45.48416349]
[1749053368201,19.48416349,156.81,156.76,19.48416349]
[1749053369309,29.24648188,156.81,156.76,29.24648188]
[1749053369482,29.24648188,156.82,156.77,55.24648188]
[1749053369678,29.24648188,156.82,156.77,29.24648188]
[1749053370081,29.24648188,156.82,156.77,55.24648188]
[1749053370291,6.3853,156.84,156.77,55.24648188]
[1749053370502,29.24648188,156.82,156.77,26.0]
[1749053370806,291.04648188,156.87,156.8,47.89613074]
[1749053370807,235.8,156.87,156.8,47.89613074]
[1749053370996,265.04648188,156.87,156.83,29.24648188]
[1749053371300,235.8,156.87,156.83,29.24648188]
[1749053371505,265.04648188,156.87,156.83,29.24648188]
[1749053372405,235.8,156.87,156.83,29.24648188]
[1749053372784,29.24648188,156.9,156.85,29.24648188]
[1749053373088,29.24648188,156.9,156.86,29.24648188]
[1749053373480,120.2362,156.92,156.86,29.24648188]
[1749053373805,29.24648188,156.91,156.86,29.24648188]
[1749053377307,29.24648188,156.9,156.86,29.24648188]
[1749053378592,29.24648188,156.9,156.85,29.24648188]
[1749053380286,29.24648188,156.9,156.86,55.24648188]
[1749053380599,123.48268188,156.92,156.88,29.24648188]
[1749053380805,87.7,156.91,156.87,18.79181043]
[1749053380995,116.94648188,156.91,156.87,18.79181043]
[1749053381384,116.94648188,156.91,156.83,1.97988471]
[1749053381385,29.24648188,156.9,156.85,55.24648188]
[1749053381689,87.7,156.91,156.85,55.24648188]
[1749053381690,29.24648188,156.89,156.85,55.24648188]
[1749053384496,29.24648188,156.9,156.85,55.24648188]
[1749053384690,29.24648188,156.9,156.86,29.24648188]
[1749053384886,116.94648188,156.91,156.87,29.24648188]
[1749053386314,116.94648188,156.91,156.86,18.79181043]
[1749053386491,29.24648188,156.89,156.85,55.24648188]
[1749053387210,235.8,156.88,156.85,55.24648188]
[1749053387390,87.7,156.87,156.85,26.0]
[1749053387595,87.7,156.87,156.86,29.24648188]
[1749053388426,87.7,156.87,156.86,48.03829231]
[1749053392898,87.7,156.87,156.86,18.79181043]
[1749053393095,148.1,156.88,156.86,48.03829231]
[1749053393602,148.1,156.88,156.84,0.14216157]
[1749053393799,148.1,156.88,156.84,29.38864345]
[1749053394329,148.1,156.88,156.84,0.14216157]
[1749053394330,177.34648188,156.88,156.84,0.14216157]
[1749053394547,177.34648188,156.88,156.83,29.24648188]
[1749053394834,235.8,156.87,156.83,29.24648188]
[1749053395323,235.8,156.87,156.84,29.24648188]
[1749053397130,235.8,156.87,156.82,0.14216157]
[1749053397733,235.8,156.87,156.85,29.24648188]
[1749053397928,87.7,156.86,156.85,29.24648188]
[1749053399513,87.7,156.86,156.82,0.14216157]
[1749053399731,87.7,156.86,156.85,29.24648188]
[1749053400326,87.7,156.86,156.82,0.14216157]
[1749053400545,87.7,156.85,156.82,0.14216157]
[1749053400840,87.7,156.85,156.84,48.03829231]
[1749053401217,87.7,156.85,156.84,38.68790826]
[1749053401647,148.1,156.91,156.88,18.79181043]
[1749053401955,6.2239,156.96,156.89,0.42648471]
[1749053401956,87.7,156.9,156.89,0.42648471]
[1749053403148,87.7,156.9,156.89,38.68790826]
[1749053411741,87.7,156.9,156.89,64.68790826]
[1749053412827,87.7,156.9,156.89,45.21829514]
[1749053413044,87.7,156.9,156.89,64.68790826]
[1749053416474,87.7,156.9,156.89,44.79181043]
[1749053416957,19.46961312,156.94,156.89,64.26142355]
[1749053417252,19.46961312,156.94,156.9,19.46961312]
[1749053418136,19.46961312,156.93,156.89,64.26142355]
[1749053419149,19.46961312,156.94,156.9,19.46961312]
[1749053421032,148.1,156.95,156.91,19.21829514]
[1749053421238,87.7,156.94,156.93,18.79181043]
[1749053421450,87.7,156.94,156.93,0.14216157]
[1749053421629,87.7,156.93,156.92,26.0]
[1749053423173,87.7,156.93,156.9,0.42648471]
[1749053423378,87.7,156.93,156.91,26.0]
[1749053425354,87.7,156.93,156.9,19.61177469]
[1749053425556,87.7,156.92,156.89,44.79181043]
[1749053425957,87.7,156.92,156.89,64.26142355]
[1749053427570,87.7,156.92,156.91,38.26142355]
[1749053428077,87.7,156.92,156.91,18.79181043]
[1749053429276,87.7,156.92,156.91,64.26142355]
[1749053429869,87.7,156.92,156.9,18.79181043]
[1749053430448,87.7,156.92,156.9,38.26142355]
[1749053431896,87.7,156.92,156.91,38.26142355]
[1749053434186,87.7,156.92,156.91,18.79181043]
[1749053435865,87.7,156.92,156.91,64.26142355]
[1749053437771,148.1,156.95,156.92,18.79181043]
[1749053437970,148.1,156.95,156.93,19.46961312]
[1749053438683,87.7,156.97,156.93,19.46961312]
[1749053442916,87.7,156.97,156.92,18.79181043]
[1749053442917,87.7,156.97,156.96,18.64964886]
[1749053443067,87.7,156.97,156.96,38.26142355]
[1749053443671,87.7,156.97,156.93,38.40358512]
[1749053444012,87.7,156.97,156.93,64.26142355]
[1749053444512,87.7,156.97,156.94,19.46961312]
[1749053446394,87.7,156.96,156.94,19.46961312]
[1749053446993,87.7,156.96,156.93,64.26142355]
[1749053447208,107.16961312,156.96,156.93,0.14216157]
[1749053447408,87.7,156.96,156.93,19.61177469]
[1749053448209,87.7,156.96,156.93,0.14216157]
[1749053449591,87.7,156.96,156.93,19.61177469]
[1749053449990,87.7,156.96,156.94,19.46961312]
[1749053450527,235.8,157.01,156.95,38.68790826]
[1749053450715,87.7,157.0,156.99,19.21829514]
[1749053450888,87.7,157.06,157.03,18.79181043]
[1749053451089,148.1,157.09,157.05,19.46961312]
[1749053451394,148.1,157.09,157.06,19.46961312]
[1749053451606,148.1,157.09,157.07,19.46961312]
[1749053452292,148.1,157.09,157.06,19.46961312]
[1749053453412,148.1,157.09,157.03,19.21829514]
[1749053453722,148.1,157.09,157.06,19.46961312]
[1749053455785,148.1,157.09,157.03,19.21829514]
[1749053455999,148.1,157.09,157.06,19.46961312]
[1749053456208,148.1,157.09,157.06,26.0]
[1749053456565,148.1,157.09,157.06,45.46961312]
[1749053456688,235.8,157.08,157.03,45.21829514]
[1749053456887,87.7,157.07,157.03,45.07613357]
[1749053457087,87.7,157.07,157.04,19.46961312]
[1749053457738,87.7,157.07,157.05,19.46961312]
[1749053458319,87.7,157.07,157.03,45.07613357]